Cogmind - Beta 16 @@@ ROGUE MODE // 2025.12.17 @ 19:56:12 Player: Centeno Result: Destroyed by Y-64 Sentinel with Wave Gun Performance ------------- Evolutions (3) 1500 Regions Visited (7) 1400 Robots Destroyed (30) 150 Value Destroyed (801) 801 Prototype IDs (31) 620 Alien Tech Used (0) 0 Bonus (314) 314 TOTAL SCORE: 4785 Bonus ------- Follower Combat Kills 14 Aligned with FarCom 300 Cogmind --------- Core Integrity 0/700 Matter 85/300 Energy 94/100 System Corruption 2% Temperature Cool (9) Movement Core (50) Location -7/Lower Caves Parts ------- > --- POWER (2) -------- (None) > --- PROPULSION (5) --- (None) > --- UTILITY (4) ------ Hacking Suite > --- WEAPON (2) ------- (None) > --- INVENTORY (5) ---- Improved Heat Sink Advanced Targeting Computer Advanced ECM Suite Peak State ------------ > --- POWER ------------ (None) > --- PROPULSION ------- Light Treads Improved Treads Carbon-fiber Leg > --- UTILITY ---------- Hacking Suite Heart of Steel > --- WEAPON ----------- Beamcaster Beamcaster > --- INVENTORY -------- Improved Heat Sink Advanced Targeting Computer Advanced ECM Suite Precision Grenade Launcher [Rating: 44] Favorites ----------- Power Light Ion Engine Engine Light Ion Engine Propulsion Flight Unit Treads Improved Treads Leg Carbon-fiber Leg Wheel Wheel Flight Unit Flight Unit Utility Hacking Suite Device Cloak of Protection Storage Small Storage Unit Hackware Hacking Suite Weapon Assault Rifle Energy Gun Beamcaster Ballistic Gun Assault Rifle Launcher Precision Grenade Launcher Build | -11 -10 -10 -10 -9 -8 -7 -7 ------- Run | Yrd Mat Min Exi Min Mat Fac Low Slots Evolved 6 | . . . . . 4 2 . Power 1 | . . . . . . 1 . Propulsion 3 | . . . . . 3 . . Utility 2 | . . . . . 1 1 . Weapon . | . . . . . . . . Parts Attached 40 | 5 9 7 1 3 2 6 7 Power 6 | 1 1 3 . . . 1 . Engine 6 | 1 1 3 . . . 1 . Core . | . . . . . . . . Reactor . | . . . . . . . . Propulsion 14 | . 4 4 . 1 1 1 3 Treads 2 | . . . . . . . 2 Leg 1 | . . . . . . . 1 Wheel 2 | . 2 . . . . . . Hover . | . . . . . . . . Flight 9 | . 2 4 . 1 1 1 . Utility 10 | 2 1 . 1 . 1 3 2 Device 7 | 1 1 . 1 . . 2 2 Storage 1 | 1 . . . . . . . Processor . | . . . . . . . . Hackware 2 | . . . . . 1 1 . Protection . | . . . . . . . . Artifact . | . . . . . . . . Weapon 10 | 2 3 . . 2 . 1 2 Energy Gun 4 | 1 1 . . . . . 2 Energy Cannon . | . . . . . . . . Ballistic Gun 4 | 1 2 . . 1 . . . Ballistic Cannon . | . . . . . . . . Launcher 2 | . . . . 1 . 1 . Special Weapon . | . . . . . . . . Impact Weapon . | . . . . . . . . Slashing Weapon . | . . . . . . . . Piercing Weapon . | . . . . . . . . Special Melee Weapon . | . . . . . . . . Unidentified Prototypes 2 | . . . . . . 1 1 Corrupted Parts 1 | . . . . . . . 1 System Corruption 1 | . . . . . . . 1 Parts Lost 23 | . 1 2 . . . 2 18 Power 3 | . . 1 . . . . 2 Propulsion 10 | . . 1 . . . 1 8 Utility 4 | . . . . . . 1 3 Weapon 6 | . 1 . . . . . 5 Highest Loss Streak 9 | . 1 2 . . . 1 9 To Critical Strikes . | . . . . . . . . Average Backups 4 | 3 4 4 5 5 4 4 4 Power . | . 1 . . . . . . Propulsion 1 | 1 1 2 4 4 1 . . Utility 1 | . . . . . 2 2 2 Weapon 1 | . 1 1 1 1 1 1 1 Tool/Special . | . . . . . . . . Unused Backups 4 | . . 1 . . . 2 1 Power . | . . . . . . . . Propulsion . | . . . . . . . . Utility 2 | . . . . . . 1 1 Weapon 2 | . . 1 . . . 1 . Tool/Special . | . . . . . . . . Average Slot Usage (%) 70 | . 80 83 88 85 81 89 46 Engine 8 | . 14 13 14 14 9 7 2 Treads 1 | . . . . . . . 4 Leg 1 | . . . . . . . 3 Flight 21 | . 12 27 28 28 44 38 8 Device 13 | . 14 14 16 14 9 19 10 Storage 1 | . 7 . . . . . . Hackware 3 | . . . . . 1 8 7 Energy Gun 3 | . 14 . . . . . 3 Ballistic Gun 13 | . 11 28 28 27 18 13 1 Launcher 1 | . . . . . . 1 2 Peak Build Rating 44 | 5 9 9 14 14 20 33 44 Average Rating 20 | 3 5 5 11 13 17 27 34 On Entrance 11 | . 5 6 6 13 13 20 28 Avg Prop Armor Cover (%) 3 | . . . . . . 2 3 Naked Turns . | . . . . . . . . Heaviest Build 25 | 14 14 11 16 15 14 25 21 Greatest Support 43 | 3 26 8 8 8 20 20 43 Greatest Overweight (x) 5 | 4 4 1 1 1 . 1 5 Average Overweight (x) . | 2 . . . 1 . . . Largest Inventory Capacity 8 | 8 8 5 5 5 5 5 5 Average Capacity 5 | 7 6 5 5 5 5 5 5 Most Carried 6 | 6 5 5 5 5 5 5 5 Average Carried 4 | 3 3 4 5 5 4 4 4 Final Capacity 8 | 8 5 5 5 5 5 5 5 Final Carried 5 | 4 5 5 5 5 5 5 3 Class Distribution -------------------- 42% | Mutant 31% | Scavenger-Mutant 25% | Scavenger-Sprinter Dominant Class ---------------- Mutant | -10/Materials Scavenger-Mutant | -10/Mines Mutant | -10/Exiles Scavenger-Mutant | -9/Mines Scavenger-Sprinter | -8/Materials Scavenger-Sprinter | -7/Factory Mutant | -7/Lower Caves Resources | -11 -10 -10 -10 -9 -8 -7 -7 ----------- Run | Yrd Mat Min Exi Min Mat Fac Low Matter Collected 1398 | 182 218 208 . 122 86 . 582 Remotely . | . . . . . . . . Salvage Created 887 | 16 340 186 . 65 18 . 262 Parts 44 | 4 16 8 . 7 2 . 7 Haulers Intercepted 1 | . 1 . . . . . . Recyclers Shooed . | . . . . . . . . Parts Field Recycled . | . . . . . . . . Retrieved Matter . | . . . . . . . . Parts Self-Destructed 7 | . . . . . . . 7 Prevented . | . . . . . . . . Parts Restored . | . . . . . . . . Kills | -11 -10 -10 -10 -9 -8 -7 -7 ------- Run | Yrd Mat Min Exi Min Mat Fac Low Combat Hostiles Destroyed 29 | . 5 9 . 6 . . 9 Guns 18 | . 5 9 . 4 . . . AOE 11 | . . . . 2 . . 9 Classes Destroyed 11 | 1 4 1 . . 1 . 4 Tunneler 1 | 1 . . . . . . . Hauler 1 | . 1 . . . . . . Recycler 2 | . 2 . . . . . . Operator 1 | . . . . . 1 . . Swarmer 14 | . 3 3 . 6 . . 2 Grunt 7 | . 2 2 . . . . 3 Brawler 1 | . . . . . . . 1 Duelist 1 | . . . . . . . 1 Sentry 1 | . . . . . . . 1 Hunter 1 | . . . . . . . 1 Assembled 4 | . . 4 . . . . . Best Kill Streak 6 | 1 4 6 . 4 1 . 5 Combat Bots Only 6 | . 3 6 . 4 . . 5 Max Kills in Single Turn 2 | 1 2 1 . 2 1 . 2 Gunslinging 1 | . 1 . . . . . . Exploded 2 | . . . . 2 . . 2 Melee . | . . . . . . . . Uniques/NPCs Destroyed . | . . . . . . . . Combat | -11 -10 -10 -10 -9 -8 -7 -7 -------- Run | Yrd Mat Min Exi Min Mat Fac Low Hostile Shots Fired 389 | . 36 22 . 32 2 50 247 Missed 148 | . 7 10 . 9 1 30 91 Hits 241 | . 29 12 . 23 1 20 156 Melee 7 | . . 4 . . . . 3 Projectile 234 | . 29 8 . 23 1 20 153 Critical Strikes 5 | . 1 . . . . . 4 Damage Taken 3565 | . 359 217 . 183 . 236 2570 Core 856 | . 70 49 . 26 . 50 661 Absorbed by Shields . | . . . . . . . . Core Remaining (%) 80 | 100 . . . 42 100 . . Volleys Fired 99 | 4 31 19 . 12 5 1 27 Largest 2 | 2 2 2 . 2 2 2 2 Hottest 90 | 60 90 40 . 53 40 53 56 Shots Fired 172 | 8 61 38 . 24 10 2 29 Gun 147 | 8 61 38 . 18 10 1 11 Cannon . | . . . . . . . . Launcher 25 | . . . . 6 . 1 18 Special . | . . . . . . . . Kinetic 101 | 4 19 38 . 18 10 1 11 Thermal 46 | 4 42 . . . . . . Explosive 25 | . . . . 6 . 1 18 Electromagnetic . | . . . . . . . . Robot Hit Streak 19 | 4 7 11 . 3 1 . 19 Robot Miss Streak 5 | 2 4 2 . 5 3 . 2 Penetration Max . | . . . . . . . . Secondary Targets 4 | . 1 1 . 2 . . . Max Gunslinging Chain 1 | . 1 1 . 1 . . . Shots Hit Robots 99 | 5 34 23 . 10 4 . 23 Core Hits 61 | 1 15 14 . 5 2 . 24 Critical Kills . | . . . . . . . . Critical Parts Destroyed . | . . . . . . . . Critical Strikes . | . . . . . . . . Melee Attacks . | . . . . . . . . Impact . | . . . . . . . . Slashing . | . . . . . . . . Piercing . | . . . . . . . . Sneak Attacks . | . . . . . . . . Combat Hostiles . | . . . . . . . . Follow-up Attacks . | . . . . . . . . Damage Inflicted 2292 | 57 412 280 . 344 49 27 1123 Guns 955 | 57 412 280 . 109 49 . 48 Cannons . | . . . . . . . . Explosions 1331 | . . . . 235 . 27 1069 Melee . | . . . . . . . . Ramming 6 | . . . . . . . 6 Kinetic 606 | 24 96 280 . 109 49 . 48 Thermal 349 | 33 316 . . . . . . Explosive 1331 | . . . . 235 . 27 1069 Electromagnetic . | . . . . . . . . Impact . | . . . . . . . . Slashing . | . . . . . . . . Piercing . | . . . . . . . . Highest Corruption 2 | . . . . . . . 2 Average Corruption 1 | . . . . . . . 1 Corruption Purged . | . . . . . . . . Corruption Blocked . | . . . . . . . . Effects 6 | . . . . . . . 6 Message Errors 1 | . . . . . . . 1 Matter Fused 1 | . . . . . . . 1 Energy Discharges 1 | . . . . . . . 1 Parts Fused 1 | . . . . . . . 1 Data Loss (minor) 2 | . . . . . . . 2 Overload Shots . | . . . . . . . . Overflow Damage 187 | . . . . 43 . . 144 Projectiles . | . . . . . . . . Explosions 187 | . . . . 43 . . 144 Melee . | . . . . . . . . Knockbacks 1 | . . . . . . . 1 Impact 1 | . . . . . . . 1 Kinetic . | . . . . . . . . Secondary . | . . . . . . . . Self-Inflicted Damage 302 | . . . . . . 29 273 Shots 9 | . . . . . . 1 8 Rammed 8 | . . . . . . . 8 Targets Rammed 8 | . . . . . . . 8 Kicked . | . . . . . . . . Crushed . | . . . . . . . . Highest Temperature 286 | . 286 . . 32 9 14 6 Average Temperature 81 | . 108 . . 18 7 5 4 Received Heat Transfer 555 | . 204 . . . . 93 258 Effects 3 | . 3 . . . . . . Interference 3 | . 3 . . . . . . Siege Activations . | . . . . . . . . Martial Activations . | . . . . . . . . Shielding Activations . | . . . . . . . . Robots Disrupted . | . . . . . . . . Combat Hostiles . | . . . . . . . . Robots Corrupted . | . . . . . . . . Combat Hostiles . | . . . . . . . . Parts Fried . | . . . . . . . . Impact Corruptions . | . . . . . . . . Robots Melted . | . . . . . . . . Combat Hostiles . | . . . . . . . . Parts Melted 2 | . 2 . . . . . . Heat Transferred 895 | 75 820 . . . . . . Parts Sabotaged . | . . . . . . . . Parts Stolen . | . . . . . . . . Parts Stripped . | . . . . . . . . Power Chain Reactions . | . . . . . . . . Alert | -11 -10 -10 -10 -9 -8 -7 -7 ------- Run | Yrd Mat Min Exi Min Mat Fac Low Maximum Alert Level 1 | . . . . . . 1 . Low Security (%) 94 | 100 100 100 . 100 100 74 . Level 1 5 | . . . . . . 25 . Level 2 . | . . . . . . . . Level 3 . | . . . . . . . . Level 4 . | . . . . . . . . Level 5 . | . . . . . . . . High Security . | . . . . . . . . Max Security . | . . . . . . . . Peak Influence 273 | 5 61 79 . 94 100 273 . Initial 45 | . . . . . 32 45 . Average 56 | . 27 49 . 33 20 161 . Influence Increases 1471 | 5 157 207 . 194 130 378 400 Destroy 0b10 Robot/C 540 | . 100 140 . 120 . . 180 Destroy 0b10 Robot/NC 25 | 5 15 . . . 5 . . Destroy Leader 72 | . 22 30 . 10 . . 10 Allied During Kill 7 | . . 7 . . . . . Successful Hack 62 | . 19 . . . 5 38 . Disable Machine 120 | . . 15 . 15 . 90 . Destroy Structure 90 | . 1 . . 34 . 55 . Partial Spotted 45 | . . . . . 45 . . Lose Combat Pursuer 510 | . . 15 . 15 75 195 210 Influence Decreases 1471 | 5 157 170 37 110 114 225 653 Entered New Map 238 | . . . 37 . 52 55 94 Time Decay 996 | 5 147 130 . 110 62 150 392 Lost Part 217 | . 10 20 . . . 20 167 Lost Ally 20 | . . 20 . . . . . Squads Dispatched 5 | . 1 1 . . 1 2 . Investigation 2 | . 1 . . . . 1 . Extermination 1 | . . . . . . 1 . Reinforcement 1 | . . . . . 1 . . Assault 1 | . . 1 . . . . . Garrison . | . . . . . . . . Intercept . | . . . . . . . . Searches Triggered . | . . . . . . . . Construction Impeded . | . . . . . . . . Haulers Reinforced . | . . . . . . . . Active Scanning Responses . | . . . . . . . . Cargo Convoy Interrupts . | . . . . . . . . Stealth | -11 -10 -10 -10 -9 -8 -7 -7 --------- Run | Yrd Mat Min Exi Min Mat Fac Low Distress Signals 5 | . . 2 . . 2 1 . Communications Jammed . | . . . . . . . . Distress Signals . | . . . . . . . . Times Spotted 96 | . 11 27 . 7 9 18 24 Peak Tracking Total 20 | . 3 20 . 4 11 9 7 Tactical Retreats 20 | . . 4 . 1 1 7 7 Traps | -11 -10 -10 -10 -9 -8 -7 -7 ------- Run | Yrd Mat Min Exi Min Mat Fac Low Traps Triggered . | . . . . . . . . Indirectly . | . . . . . . . . Trap Hack Attempts . | . . . . . . . . Triggered . | . . . . . . . . Disarmed 6 | . . . . . 6 . . Reprogrammed . | . . . . . . . . Reused . | . . . . . . . . Traps Extracted . | . . . . . . . . Installed . | . . . . . . . . Triggered . | . . . . . . . . Machines | -11 -10 -10 -10 -9 -8 -7 -7 ---------- Run | Yrd Mat Min Exi Min Mat Fac Low Machines Disabled 9 | . . 1 . 1 . 6 1 Max in Single Turn 4 | . . . . 1 . 4 1 Garrison Access 1 | . . . . . . 1 . Machines Repaired . | . . . . . . . . Machines Dismantled . | . . . . . . . . Machines Sabotaged . | . . . . . . . . Overloaded Fab Kills . | . . . . . . . . Hacking | -11 -10 -10 -10 -9 -8 -7 -7 --------- Run | Yrd Mat Min Exi Min Mat Fac Low Machines Accessed 22 | . 5 1 2 . 7 6 1 Terminals 13 | . 5 1 . . 6 1 . Fabricators 2 | . . . . . . 2 . Repair Stations . | . . . . . . . . Recycling Units 2 | . . . . . 1 1 . Scanalyzers 1 | . . . . . . 1 . Garrison Access 1 | . . . . . . 1 . Total Hacks 73 | . 14 1 24 . 21 12 1 Successful 43 | . 5 . 24 . 6 7 1 Failed 30 | . 9 1 . . 15 5 . Catastrophic 8 | . 6 . . . . 2 . Database Lockouts . | . . . . . . . . Manual 16 | . 12 1 1 . 2 . . Terminals 36 | . 14 1 . . 19 2 . Fabricators 3 | . . . . . . 3 . Repair Stations . | . . . . . . . . Recycling Units 5 | . . . . . 2 3 . Scanalyzers 3 | . . . . . . 3 . Garrison Access 1 | . . . . . . 1 . Terminal Hacks 35 | . 4 . 24 . 5 1 1 Record 23 | . . . 23 . . . . Prototype ID Bank 3 | . . . . . 2 1 . Open Door 1 | . . . . . . . 1 Branch Access Points 1 | . 1 . . . . . . Locate Traps 2 | . 1 . . . 1 . . Disarm Traps 1 | . . . . . 1 . . Transport Status 1 | . 1 . . . . . . Hauler Manifests 1 | . . . . . 1 . . Registered Components 1 | . 1 . . . . . . Proto ID Catalog 1 | . . . 1 . . . . Fabricator Hacks 2 | . . . . . . 2 . Network Status 1 | . . . . . . 1 . Build 1 | . . . . . . 1 . Repair Station Hacks . | . . . . . . . . Recycling Unit Hacks 3 | . . . . . 1 2 . Report Inventory 2 | . . . . . 1 1 . Retrieve Components 1 | . . . . . . 1 . Scanalyzer 1 | . . . . . . 1 . Insert Component 1 | . . . . . . 1 . Garrison Access Hacks 1 | . . . . . . 1 . Seal Access 1 | . . . . . . 1 . Unauthorized Hacks 1 | . 1 . . . . . . Terminals 1 | . 1 . . . . . . Operators 1 | . 1 . . . . . . Fabricators . | . . . . . . . . Repair Stations . | . . . . . . . . Recycling Units . | . . . . . . . . Scanalyzers . | . . . . . . . . Garrison Access . | . . . . . . . . Data Cores Recovered . | . . . . . . . . Used . | . . . . . . . . Hacking Detections 16 | . 5 . . . 7 4 . Full Trace Events 2 | . 1 . . . . 1 . Feedback Events . | . . . . . . . . Feedback Blocked . | . . . . . . . . Robot Schematics Acquired . | . . . . . . . . Robots Built . | . . . . . . . . Authchips . | . . . . . . . . Time 134 | . . . . . . 134 . Total Robot Build Rating . | . . . . . . . . Part Schematics Acquired . | . . . . . . . . Parts Built . | . . . . . . . . Authchips . | . . . . . . . . Time . | . . . . . . . . Total Part Build Rating . | . . . . . . . . Part Studies Acquired . | . . . . . . . . Parts Repaired . | . . . . . . . . Time . | . . . . . . . . Parts Recycled . | . . . . . . . . Recycled Matter . | . . . . . . . . Retrieved Matter . | . . . . . . . . Retrieved Components 1 | . . . . . . 1 . Parts Scanalyzed 1 | . . . . . . 1 . Part Schematics Acquired . | . . . . . . . . Parts Damaged 1 | . . . . . . 1 . Bothacking | -11 -10 -10 -10 -9 -8 -7 -7 ------------ Run | Yrd Mat Min Exi Min Mat Fac Low Used RIF Installer . | . . . . . . . . Robots Hacked . | . . . . . . . . Non-combat . | . . . . . . . . Combat . | . . . . . . . . Robot Hacks Applied . | . . . . . . . . Relay Couplers Released . | . . . . . . . . Fabnet Peak Effective % . | . . . . . . . . Robots Rewired . | . . . . . . . . Allies Hacked . | . . . . . . . . Hacks Repelled . | . . . . . . . . Allies | -11 -10 -10 -10 -9 -8 -7 -7 -------- Run | Yrd Mat Min Exi Min Mat Fac Low Total Allies 2 | . . 2 . . . . . Largest Group 1 | . . 1 . . . . . Highest-Rated Group 31 | . . 31 . . . . . Highest-Rated Ally 31 | . . 31 . . . . . Total Orders . | . . . . . . . . Ally Attacks 18 | . . 18 . . . . . Total Damage 150 | . . 150 . . . . . Kills 2 | . . 2 . . . . . Allies Corrupted . | . . . . . . . . Allies Melted . | . . . . . . . . Intel | -11 -10 -10 -10 -9 -8 -7 -7 ------- Run | Yrd Mat Min Exi Min Mat Fac Low Active Infowar (turns) 676 | 48 279 259 80 . . 10 . Seismic 666 | 48 279 259 80 . . . . Cloaking 19 | . . . 14 . . 5 . ECM 5 | . . . . . . 5 . Robot Analysis Total . | . . . . . . . . Derelict Logs Recovered 3 | . . 1 . 1 . . 1 Drone Launches . | . . . . . . . . Drone Recoveries . | . . . . . . . . Exploration | -11 -10 -10 -10 -9 -8 -7 -7 ------------- Run | Yrd Mat Min Exi Min Mat Fac Low Turns Passed 2698 | 131 353 289 178 321 171 314 941 Spaces Moved 3602 | 60 350 502 233 234 497 803 923 Core 172 | 60 44 . . . . . 68 Treads 253 | . . . . . . . 253 Legs 5 | . . . . . . . 5 Wheels 25 | . 25 . . . . . . Hover . | . . . . . . . . Flight 3147 | . 281 502 233 234 497 803 597 Fastest Speed 28 | 50 37 37 37 117 28 28 31 Average Speed 59 | 179 67 37 75 117 28 28 86 Slowest Speed 360 | 250 250 120 117 117 28 108 360 Overloaded Moves . | . . . . . . . . Propulsion Burnouts . | . . . . . . . . Robots Hopped 27 | . . 1 . . 11 13 2 Potential Cave-ins . | . . . . . . . . Cave-ins Triggered . | . . . . . . . . Exploration Rate (%) 46 | 5 58 67 61 56 48 24 51 Regions Visited 7 Branch Regions 4 Pre-discovered Areas 3 | . . 1 1 1 . . . Known Exits Taken 1 | . 1 . . . . . . Unknown Exits Taken 6 | 1 . 1 1 1 1 1 . Scrap Searched 5 | . . 2 . 3 . . . Spaces Dug 6 | . . . . . . 6 . Terrain Destroyed 207 | . . . . 55 . 65 87 Melee . | . . . . . . . . Projectile . | . . . . . . . . AOE 207 | . . . . 55 . 65 87 Terrain Rammed . | . . . . . . . . Walls Destroyed . | . . . . . . . . Machines Disabled . | . . . . . . . . Actions | -11 -10 -10 -10 -9 -8 -7 -7 --------- Run | Yrd Mat Min Exi Min Mat Fac Low Total 3938 | 77 405 567 234 260 507 870 1018 Wait 137 | . . 22 . 7 10 59 39 Move 3544 | 59 349 499 232 233 474 779 919 Hop 24 | . . 1 . . 11 10 2 Pick Up 35 | 9 7 7 . 1 3 3 5 Fast Attach 11 | . . 2 1 . 1 4 3 Attach 27 | 5 6 2 . . 3 3 8 Detach 9 | . 3 1 . . . 3 2 Swap 18 | . 5 4 . 4 . 4 1 Drop 24 | . 4 10 1 3 . 4 2 Fire 99 | 4 31 19 . 12 5 1 27 Melee . | . . . . . . . . Ram 8 | . . . . . . . 8 Kick . | . . . . . . . . Crush . | . . . . . . . . Escape Stasis . | . . . . . . . . Rewire 2 | . . . . . . . 2 Trap . | . . . . . . . . Miscellaneous . | . . . . . . . . Route ------- -11/Scrapyard -10/Materials (discovered 2 exits: [*Mat] / *Min) -10/Mines (discovered 2 exits: [*Mat] / *Exi) -10/Exiles -9/Mines -8/Materials -7/Factory -7/Lower Caves History --------- Turn | Location | Event 13 | -11/Scrapyard | Discovered new exit (range 15) 132 | -11/Scrapyard | Entered Materials 317 | -10/Materials | Build established: Mutant 373 | -10/Materials | Identified exit to Mines 443 | -10/Materials | Discovered new exit (range 16) 485 | -10/Materials | Entered Mines 488 | -10/Mines | Received a Mining Laser from a helpful Derelict 560 | -10/Mines | Assembled infested the area 659 | -10/Mines | Met a Derelict testing a Signal Generator 703 | -10/Mines | Discovered new exit (range 9) 720 | -10/Mines | Received a Rocket Launcher from a helpful Derelict 772 | -10/Mines | Deemed a non-threat by the Exiles lab entrance 772 | -10/Mines | Discovered new exit (range 5) 774 | -10/Mines | Entered Exiles 783 | -10/Exiles | Met 8R-AWN 790 | -10/Exiles | Met EX-HEX 801 | -10/Exiles | Met EX-BIN 807 | -10/Exiles | Aligned with FarCom system 807 | -10/Exiles | Given EX-Vault access code 817 | -10/Exiles | Opened EX-Vault 819 | -10/Exiles | Found Cloak of Protection 844 | -10/Exiles | Warned to stay clear of 0b10 Research branches 877 | -10/Exiles | Met EX-DEC 895 | -10/Exiles | Learned location of Zion (-7) 940 | -10/Exiles | Discovered new exit (range 12) 952 | -10/Exiles | Left Exiles lab with Cloak of Protection 952 | -10/Exiles | Entered Mines 954 | -9/Mines | Core integrity fell below 50% 1062 | -9/Mines | YI-UF0 nonchalantly dropped a Grenade Launcher on the ground 1235 | -9/Mines | Discovered new exit (range 15) 1273 | -9/Mines | Entered Materials 1273 | -8/Materials | Evolved 4 slots: Propulsion x3, Utility x1 1428 | -8/Materials | Discovered new exit (range 16) 1444 | -8/Materials | Entered Factory 1444 | -7/Factory | Evolved 2 slots: Power x1, Utility x1 1547 | -7/Factory | Build established: Scavenger-Sprinter 1755 | -7/Factory | Discovered new exit (range 8) 1758 | -7/Factory | Entered Lower Caves 1761 | -7/Lower Caves | Learned Factory trap positions 1770 | -7/Lower Caves | Attracted the attention of an 0b10 outpost 1823 | -7/Lower Caves | Encountered a Warlord checkpoint 1902 | -7/Lower Caves | Attracted the attention of an 0b10 checkpoint 1937 | -7/Lower Caves | Spotted B-75 Beast 1977 | -7/Lower Caves | Lost 9 parts (1p4n2u2w) 1997 | -7/Lower Caves | Found Prototype Device 1999 | -7/Lower Caves | Identified Heart of Steel 2186 | -7/Lower Caves | Core integrity fell below 50% 2610 | -7/Lower Caves | Build established: Mutant 2680 | -7/Lower Caves | Core integrity fell below 20% 2699 | -7/Lower Caves | Destroyed by Y-64 Sentinel with Wave Gun Last Messages --------------- 02674_ The unstable cave ceiling collapses. 02674_ Acquired 47 matter. 02676_ Penetrated by Slug. 02676_ B-48 Gladiator destroyed. 02676_ Imp. Treads destroyed. 02676_ Destroyed Imp. Treads. 02677_ The unstable cave ceiling collapses. 02677_ Lgt. Treads crushed. 02677_ The unstable cave ceiling collapses. 02679_ Penetrated by Slug. 02681_ Acquired 53 matter. 02685_ Lgt. Treads fries itself beyond repair. 02685_ Penetrated by Slug. 02691_ Heart of Steel destroyed. 02691_ Destroyed Heart of Steel. 02693_ Prc. Grenade Launcher destroyed. 02693_ Destroyed Prc. Grenade Launcher. 02696_ Penetrated by Slug. 02696_ Beamcaster destroyed. 02697_ The unstable cave ceiling collapses. Map ----- +----------------------------------------------------+ | | | | | ?????????????????????????????????????????????????? | | ?????????????????????????????????????????????????? | | ?????????????????????????????????????????????????? | | ?????????????????????????????????????????????????? | | ?????????????????????????????????????????????????? | | ?????????????????????????????????????????????????? | | ?????????????????????????????????????????????????? | | ?????????????????????????????????????????????????? | | ?????????????????????????????????????????????????? | | ?????????????????????????????????????????????????? | | ???????????????????????????????????????????######? | | ???????????????????????????????????????????#""""## | | ???????????????????????????????????????????#" # | | ??????????????????#########????????????????### ### | | ??????????????????# ????????###???????#X #? | | ???????######?????# #####?????## ########### #? | | ??????## ###### # "# ##### ## ## | | ??????# + "# # # # | | ???????# # # "# # ### | | ???????? "# # ##?## | | ???????# Y # # ###???## # | | ??????? ?# # # #??????## ## | | ??????? ???# # ;### # ###?????## ##? | | ??????# ????# @ # #??????# ##?? | | ??????# #?????# ##### #??????# #??? | | ?????## ## #### ## ###??##### #??? | | ?##### #?# ## #??### #### | | ## #?##### ### #### ## | | #?????# # # ## ### | | #?????# # #### | | #?????# # ### | | ### # #?????# # ### | | ##?### #?????# ## ### ####### ## | | #????# #?###?# ## ?# ########??### #### | | #????# #?# ### # ?# ###????????## #??# | | #????# ### ## #######????####### #??## | | ##???# #???#### ###???# | | ##### ##### ######## | | #####" #### ## ### | | # ##" ##?# #?### | | ###" ##?# ####### #???## | | ##?##" ### ##?????# #????# | | ##???## ######## #????? | | # # ####### ! #???## | | ### ### ## #### | | ##### ### ### ######### # | | ##?## ### ##?## ##???????# | | #??## "#?## #???# ##????????## | +----------------------------------------------------+ Best States ------------- Heat Dissipation 39 Energy Generation 13 Energy Capacity 265 Matter Stores 300 Matter Capacity 300 Sight Range 16 Terrain Scan Density 10 Cloak Strength 5 Power Amplification 20 Evasion (%) 64 Recoil Reduction 2 Offensive Hacking 20 Item Schematics ----------------- None Robot Schematics ------------------ None Fabricated ------------ Nothing Repaired ---------- Nothing Studied --------- None Alien Tech Used ----------------- None Achievements -------------- A Problem For Future Me Overwhelming Resistances Are Futile Challenges ------------ None Game ------ Seed ChainComponentProtomatter Manual? 0 Play Time 00:49:15 Cumulative 10.5 hours Start 2025.12.17 @ 16:58:28 End 2025.12.17 @ 19:56:12 Sessions 3 Manual Loads 0 Difficulty Rogue Special Mode None Game No. 11 Rogue 11 Adventurer 0 Explorer 0 Win Type - Total 1 Types 1/0/0/0/0/0/0/0/0/0 Lore% 4 Gallery% 14 Achievement% 14 Wizard Run 0 Options --------- Layout 1 ASCII 0 Keyboard 0 Movement Numpad Keybinds 0 Fullscreen 1 Font 24/Smallcaps Map View 50x40 Zoom Use 0% Tactical HUD 1 Map Filters NONE Filters NONE Steam 1 RUN: 246459a9-2155-4d2a-8f3e-d9cc84582482